bitfinex/quotes_SOLUSD_20251216
["timestamp","ask_amount","ask_price","bid_price","bid_amount"]
[1765900558751,8.39846077,129.9,129.84,8.56363633]
[1765900559014,7.94363633,129.89,129.85,7.70119368]
[1765900559154,8.64363633,129.87,129.85,7.70119368]
[1765900559665,0.7,129.9,129.85,16.26483001]
[1765900559831,8.64363633,129.9,129.85,16.26483001]
[1765900560030,8.64363633,129.9,129.85,35.51781422]
[1765900560236,8.39704735,129.92,129.86,17.00363633]
[1765900560437,19.23960936,129.95,129.87,0.62]
[1765900560438,7.69585962,129.94,129.87,0.62]
[1765900560668,8.64363633,129.92,129.87,8.56363633]
[1765900560831,7.94363633,129.9,129.87,8.44]
[1765900561044,192.57740647,129.96,129.87,17.00363633]
[1765900561278,0.7,129.95,129.88,7.94363633]
[1765900561437,0.7,129.98,129.88,8.80994492]
[1765900561637,7.94363633,129.95,129.88,8.80994492]
[1765900561965,7.94363633,129.94,129.89,16.38363633]
[1765900562147,0.7,129.98,129.89,8.44]
[1765900562353,0.7,129.99,129.9,8.80994492]
[1765900562534,7.94363633,129.98,129.93,7.94363633]
[1765900562772,7.81249912,130.0,129.95,7.69526741]
[1765900563094,7.94363633,129.99,129.94,8.31570333]
[1765900563303,0.7,129.98,129.94,15.63933966]
[1765900563473,0.7,129.99,129.95,7.94363633]
[1765900563866,0.72,129.99,129.94,15.63933966]
[1765900564079,0.12,130.0,129.97,7.94363633]
[1765900564495,0.72,130.05,129.97,8.80994492]
[1765900564685,0.72,130.05,129.97,9.30994492]
[1765900564997,0.72,130.05,129.98,7.6934913]
[1765900565197,8.40948109,130.05,129.99,17.24994492]
[1765900565373,0.72,130.04,129.99,25.19358125]
[1765900565706,0.72,130.03,129.99,8.44]
[1765900565883,7.94363633,130.02,129.97,16.13397579]
[1765900566089,0.72,130.02,129.97,24.57761212]
[1765900566290,8.40948109,130.05,130.0,7.94363633]
[1765900566470,0.18235052,130.06,130.01,8.80994492]
[1765900566801,0.18235052,130.06,130.04,15.63349822]
[1765900566996,0.18235052,130.06,130.04,7.68986189]
[1765900567301,0.18235052,130.06,130.05,7.94363633]
[1765900567478,0.18235052,130.06,130.05,17.25358125]
[1765900568073,0.18235052,130.06,130.05,8.80994492]
[1765900568298,0.18235052,130.06,130.05,8.44]
[1765900568493,0.18235052,130.06,130.04,7.94363633]
[1765900568694,0.18235052,130.06,130.05,16.75358125]
[1765900568879,0.18235052,130.06,130.04,8.44]
[1765900569208,0.18235052,130.06,130.04,16.88363633]
[1765900569409,0.18235052,130.06,130.05,15.63298657]
[1765900569773,0.18235052,130.06,130.05,8.44363633]
[1765900570095,0.18235052,130.06,130.05,0.5]
[1765900570494,0.18235052,130.06,130.05,8.44363633]
[1765900570794,0.18235052,130.06,130.01,8.46076928]
[1765900571002,0.18235052,130.06,130.0,8.42]
[1765900571003,7.94363633,130.04,130.0,8.42]
[1765900571202,27.81343848,130.06,130.0,8.42]
[1765900571369,27.81343848,130.06,130.0,24.55580734]
[1765900571575,7.94363633,130.05,130.0,16.61217101]
[1765900571900,7.94363633,130.05,129.98,28.04327928]
[1765900571901,0.72,130.04,129.99,8.92]
[1765900572106,7.94363633,130.03,129.99,0.5]
[1765900572275,27.09343848,130.06,129.99,8.92]
[1765900572476,7.8715409,130.06,130.0,0.5]
[1765900572675,0.18235052,130.06,130.02,0.5]
[1765900572895,0.18235052,130.06,130.03,0.5]
[1765900573204,7.87127198,130.06,130.02,16.61098463]
[1765900573402,7.94363633,130.05,129.97,38.46816579]
[1765900573586,7.94363633,130.03,129.96,0.5]
[1765900573785,7.87127198,130.06,129.97,24.92392701]
[1765900573786,7.94363633,130.02,129.97,24.92392701]
[1765900573984,7.94363633,130.02,129.97,25.42392701]
[1765900574296,7.94363633,130.01,129.97,25.42392701]
[1765900574805,7.94363633,130.0,129.97,8.42]
[1765900575107,8.66363633,129.99,129.97,8.42]
[1765900575482,8.66363633,129.99,129.94,7.94363633]
[1765900575483,7.69278014,130.0,129.95,7.69522361]
[1765900575802,7.94363633,129.99,129.95,7.69522361]
[1765900576010,8.66363633,129.98,129.93,9.30994492]
[1765900576310,7.94363633,129.96,129.91,8.44363633]
[1765900576507,7.69278014,130.0,129.92,8.80994492]
[1765900576686,16.35641647,130.0,129.94,8.80994492]
[1765900576888,184.1284629,130.02,129.96,7.69467528]
[1765900576889,15.63553752,130.01,129.96,7.69467528]
[1765900577074,8.41190119,130.01,129.96,7.69467528]
[1765900577405,8.41190119,130.01,129.96,16.11467528]
[1765900577406,16.35553752,130.01,129.96,16.11467528]
[1765900577607,16.35553752,130.01,129.96,24.05831161]
[1765900577608,0.72,130.01,129.96,24.05831161]
[1765900577823,7.69056419,130.03,129.98,8.44363633]
[1765900578016,16.35420052,130.03,129.98,0.5]
[1765900578230,8.41056419,130.03,129.98,0.5]
[1765900578395,16.35420052,130.03,129.98,0.5]
[1765900578594,15.63420052,130.03,129.97,7.94363633]
[1765900578838,7.94363633,130.03,129.99,0.5]
[1765900579143,7.69011272,130.04,129.99,7.94363633]
[1765900579144,16.35374905,130.04,129.99,7.94363633]
[1765900579333,7.94363633,130.03,129.98,8.19326852]
[1765900579509,7.69011272,130.04,129.96,27.65668821]
[1765900579510,7.94363633,130.01,129.96,24.44788236]
[1765900579703,0.72,130.01,129.97,8.42]
[1765900579904,0.72,130.01,129.95,0.5]
[1765900579905,0.72,129.98,129.92,19.24216556]
[1765900580104,0.72,129.97,129.92,27.66216556]
[1765900580334,0.72,130.0,129.93,26.93758176]
[1765900580623,0.72,130.02,129.95,0.5]
[1765900580833,8.66363633,130.02,129.97,7.94363633]
[1765900581038,8.41011272,130.04,129.99,15.63653578]
[1765900581329,7.87152375,130.06,130.01,7.94363633]
[1765900581524,16.53516008,130.06,130.01,7.94363633]
[1765900581833,0.72,130.05,130.01,7.94363633]
[1765900582133,0.18235052,130.06,130.02,16.36363633]
[1765900582423,0.18235052,130.06,130.03,7.94363633]
[1765900582644,0.90235052,130.06,130.02,8.42]
[1765900582801,8.84598685,130.06,130.01,7.94363633]
[1765900583003,0.72,130.05,130.01,8.42]
[1765900583225,0.72,130.03,130.0,7.69212558]
[1765900583401,8.66363633,130.01,129.95,28.04739044]
[1765900583601,8.66363633,130.0,129.96,16.11430112]
[1765900583806,0.72,130.0,129.96,24.05793745]
[1765900584020,0.72,130.0,129.96,16.11430112]
[1765900584221,0.72,130.0,129.96,24.05793745]
[1765900584613,7.94363633,130.03,129.96,35.85098933]
[1765900584814,0.72,130.02,129.97,7.94363633]
[1765900585246,7.68935024,130.05,129.99,7.94363633]
[1765900585404,8.5913544,130.06,130.0,7.94363633]
[1765900585607,0.18235052,130.06,130.01,7.94363633]
[1765900585825,7.94363633,130.04,129.99,8.42]
[1765900586029,8.66363633,130.03,129.99,8.42]
[1765900586225,27.09334643,130.06,129.99,8.42]
[1765900586529,0.90235052,130.06,130.03,7.69053295]
[1765900586930,0.18235052,130.06,130.03,7.69053295]
[1765900587115,0.18235052,130.06,130.03,34.86050166]
[1765900587313,0.18235052,130.06,130.04,7.94363633]
[1765900587514,0.18235052,130.06,130.03,15.63416928]
[1765900587948,0.18235052,130.06,130.05,7.94363633]
[1765900588117,0.18235052,130.06,130.03,27.41686533]
[1765900588317,0.18235052,130.06,130.04,7.94363633]
[1765900588533,0.18235052,130.06,130.04,24.05309806]
[1765900588706,0.18235052,130.06,130.04,16.10986014]
[1765900589049,0.18235052,130.06,130.01,7.94363633]
[1765900589050,0.72,130.05,130.01,7.94363633]
[1765900589209,0.72,130.05,130.02,7.69110046]
[1765900589626,7.94363633,130.04,130.0,8.42]
[1765900589824,0.72,130.03,130.0,8.42]
[1765900590028,0.72,130.03,130.01,7.94363633]
[1765900590232,0.72,130.03,130.0,35.34273916]
[1765900590421,0.72,130.03,130.0,7.69196993]
[1765900590617,0.72,130.03,130.0,15.61486643]
[1765900590822,0.72,130.04,130.01,7.9228965]
[1765900591026,0.72,130.04,129.98,7.6933201]
[1765900591027,7.9228965,130.02,129.98,7.6933201]
[1765900591252,7.68987085,130.05,130.0,7.9228965]
[1765900591415,0.18235052,130.06,130.0,9.30994492]
[1765900591924,0.90235052,130.06,130.03,7.9228965]
[1765900592125,8.59111422,130.06,130.0,9.30994492]
[1765900592321,0.72,130.05,130.02,7.9228965]
[1765900592629,0.72,130.04,130.01,7.69117163]
[1765900592836,0.72,130.04,130.0,24.03497429]
[1765900593039,0.72,130.04,130.01,7.9228965]
[1765900593228,0.18235052,130.06,130.03,7.9228965]
[1765900593434,0.18235052,130.06,130.04,7.9228965]
[1765900593635,0.18235052,130.06,130.03,8.42]
[1765900593941,0.89235052,130.06,130.03,8.42]
[1765900594137,0.18235052,130.06,130.03,16.3428965]
[1765900594347,0.18235052,130.06,130.05,7.9228965]
[1765900594525,0.18235052,130.06,130.04,7.9228965]
[1765900594731,0.89235052,130.06,130.04,7.9228965]
[1765900594931,0.89235052,130.06,130.03,24.03308941]
[1765900595261,0.89235052,130.06,130.04,7.68988244]
[1765900595432,0.89235052,130.06,130.03,24.03317578]
[1765900595935,0.89235052,130.06,130.04,7.68986542]
[1765900596137,0.18235052,130.06,130.04,7.68986542]
[1765900596336,0.18235052,130.06,130.05,7.9228965]
[1765900596736,0.18235052,130.06,130.05,15.61224674]
[1765900596937,0.18235052,130.06,130.05,7.68935024]
[1765900597133,0.18235052,130.06,130.05,16.11224674]
[1765900597349,0.18235052,130.06,130.05,15.61224674]
[1765900598051,0.18235052,130.06,130.05,24.03224674]
[1765900599447,0.18235052,130.06,130.05,16.10935024]
[1765900599755,0.89235052,130.06,130.03,24.03291205]
[1765900599926,7.87119995,130.06,130.03,7.6903207]
[1765900600257,0.71,130.05,130.03,15.6132172]
[1765900600458,0.18235052,130.06,130.03,7.9228965]
[1765900600634,0.89235052,130.06,130.03,15.61306197]
[1765900600833,0.89235052,130.06,130.03,7.69016547]
[1765900601352,0.89235052,130.06,130.03,15.61306197]
[1765900602026,0.89235052,130.06,130.04,7.9228965]
[1765900602855,0.18235052,130.06,130.05,7.68935024]
[1765900603049,0.18235052,130.06,130.05,15.61224674]
[1765900603356,0.18235052,130.06,130.05,16.3428965]
[1765900603756,0.18235052,130.06,130.05,24.03224674]
[1765900603937,0.18235052,130.06,130.05,33.34219166]
[1765900604140,0.71,130.12,130.07,9.30994492]
[1765900604351,0.71,130.15,130.09,8.80994492]
[1765900604531,0.71,130.15,130.11,7.9228965]
[1765900604959,0.71,130.15,130.11,15.60816972]
[1765900605138,0.71,130.14,130.11,15.60816972]
[1765900606155,3.11272069,130.17,130.12,7.9228965]
[1765900606356,0.71,130.16,130.12,7.9228965]
[1765900606544,0.71,130.16,130.11,26.89978401]
[1765900606948,0.71,130.16,130.12,15.60767348]
[1765900607147,0.71,130.16,130.13,7.9228965]
[1765900607353,0.71,130.16,130.12,7.68477698]
[1765900607555,0.71,130.13,130.11,7.68533738]
[1765900607872,0.71,130.11,130.07,16.10781655]
[1765900608034,0.71,130.11,130.07,24.03071305]
[1765900608230,0.71,130.1,130.06,16.3428965]
[1765900608636,0.71,130.1,130.07,7.9228965]
[1765900609052,0.71,130.13,130.09,7.9228965]
[1765900609459,8.39471694,130.13,130.09,12.85728259]
[1765900609642,0.71,130.13,130.1,12.85728259]
[1765900610167,13.56728259,130.12,130.09,8.42]
[1765900610338,0.71,130.11,130.09,8.42]
[1765900610546,0.71,130.11,130.08,20.54480793]
[1765900610743,0.71,130.11,130.08,7.68752534]
[1765900611463,0.71,130.11,130.09,12.85728259]
[1765900611670,3.11272069,130.17,130.1,21.27728259]
[1765900611856,0.71,130.16,130.12,12.85728259]
[1765900612164,0.71,130.16,130.1,8.42]
[1765900612464,0.71,130.16,130.14,12.85728259]
[1765900612665,0.71,130.16,130.1,8.92]
[1765900612855,0.71,130.16,130.1,8.42]
[1765900613055,0.71,130.16,130.12,20.54245067]
[1765900613451,0.71,130.15,130.12,16.10516808]
[1765900613656,0.71,130.15,130.12,28.96245067]
[1765900614064,0.71,130.15,130.13,12.85728259]
[1765900614454,0.71,130.16,130.13,12.85728259]
[1765900614662,0.71,130.16,130.12,35.3182022]
[1765900614867,0.71,130.16,130.12,48.17548479]
[1765900615551,0.71,130.16,130.13,12.85728259]
[1765900615754,8.39286605,130.16,130.12,16.10516808]
[1765900615974,0.71,130.15,130.12,28.96245067]
[1765900616350,0.71,130.15,130.12,16.10516808]
[1765900616974,11.50513175,130.17,130.12,28.96245067]
[1765900617170,0.71,130.15,130.12,28.96245067]
[1765900617362,0.71,130.15,130.12,20.54245067]
[1765900617566,0.71,130.15,130.12,16.10516808]
[1765900618451,0.71,130.15,130.11,20.54291779]
[1765900618753,0.71,130.14,130.12,28.96243557]
[1765900618952,0.71,130.16,130.12,28.96243557]
[1765900619157,0.71,130.16,130.12,16.10515298]
[1765900619371,0.71,130.16,130.12,28.96243557]
[1765900619752,0.71,130.16,130.13,12.85728259]
[1765900620280,0.71,130.16,130.13,21.27728259]
[1765900620477,0.71,130.16,130.13,8.42]
[1765900620680,3.11272069,130.17,130.15,12.85728259]
[1765900620860,3.11272069,130.17,130.16,20.54013446]
[1765900621062,3.11272069,130.17,130.16,16.10285187]
[1765900621265,3.11272069,130.17,130.16,7.68285187]
[1765900621586,3.11272069,130.17,130.16,16.10285187]
[1765900621954,3.11272069,130.17,130.16,8.42]
[1765900622151,3.82272069,130.17,130.16,8.42]
[1765900622365,11.50498234,130.17,130.16,8.42]
[1765900622567,11.50498234,130.17,130.12,19.71219192]
[1765900622568,3.11272069,130.17,130.15,28.9606021]
[1765900622899,3.11272069,130.17,130.16,7.68285187]
[1765900623084,3.11272069,130.17,130.16,20.54013446]
[1765900623283,3.11272069,130.17,130.15,16.10321825]
[1765900623595,3.11272069,130.17,130.16,8.42]
[1765900624293,3.11272069,130.17,130.14,7.68402937]
[1765900624482,11.45500471,130.17,130.15,8.42]
[1765900624685,3.11272069,130.17,130.16,12.85728259]
[1765900625203,3.11272069,130.17,130.16,29.85007938]
[1765900625371,3.11272069,130.17,130.16,20.54013446]
[1765900626173,3.11272069,130.17,130.16,29.85007938]
[1765900626677,3.11272069,130.17,130.16,38.27007938]
[1765900626879,3.11272069,130.17,130.16,37.77007938]
[1765900627181,3.11272069,130.17,130.16,20.54013446]
[1765900627788,3.11272069,130.17,130.16,16.10285187]
[1765900627985,3.11272069,130.17,130.16,28.96013446]
[1765900628203,3.11272069,130.17,130.12,19.21249689]
[1765900628506,3.11272069,130.17,130.15,12.85728259]
[1765900628688,3.11272069,130.17,130.16,7.68285187]
[1765900629073,3.11272069,130.17,130.14,19.21008145]
[1765900629276,3.11272069,130.17,130.16,12.85728259]
[1765900629475,3.11272069,130.17,130.16,21.66722751]
[1765900629691,3.11272069,130.17,130.16,22.16722751]
[1765900630089,3.11272069,130.17,130.16,9.30994492]
[1765900630382,0.00104395,130.2,130.18,0.23]
[1765900630585,0.10398016,130.32,130.24,0.23]
[1765900630774,0.10398016,130.32,130.26,9.03994492]
[1765900630775,0.66,130.31,130.26,9.03994492]
[1765900630993,0.66,130.31,130.27,7.67636447]
[1765900631197,0.66,130.3,130.19,0.23]
[1765900631408,12.85728259,130.28,130.24,7.67754374]
[1765900631581,13.51728259,130.26,130.25,5.53027918]
[1765900631776,0.66,130.26,130.25,5.53027918]
[1765900631985,13.51728259,130.26,130.25,5.53027918]
[1765900632214,0.66,130.26,130.25,5.53027918]
[1765900632684,0.66,130.28,130.25,5.53027918]
[1765900632994,0.66,130.28,130.26,5.53027918]
[1765900633198,8.33580145,130.28,130.27,5.53027918]
[1765900633380,0.66,130.27,130.18,13.2770912]
[1765900633586,0.66,130.25,130.21,7.67955144]
[1765900633814,0.66,130.23,130.22,5.52611401]
[1765900634279,0.66,130.23,130.22,4.08611401]
[1765900634475,0.66,130.22,130.17,12.85728259]
[1765900634700,0.66,130.22,130.18,7.68145457]
[1765900634701,12.85728259,130.22,130.18,7.68145457]
[1765900634887,0.66,130.22,130.17,9.08]
[1765900635212,0.66,130.22,130.18,8.34142941]
[1765900635506,21.19625739,130.23,130.18,8.34142941]
[1765900635702,8.3389748,130.23,130.18,8.34142941]
[1765900635898,20.53550537,130.24,130.19,0.66]
[1765900636115,0.66,130.24,130.19,0.66]
[1765900636408,13.51728259,130.24,130.19,13.51728259]
[1765900636792,21.1954788,130.24,130.2,8.42]
[1765900637193,13.51728259,130.24,130.21,7.67990169]
[1765900637503,13.51728259,130.22,130.18,7.68147603]
[1765900637709,0.66,130.21,130.17,16.10206626]
[1765900637920,13.51728259,130.21,130.17,16.10206626]
[1765900638129,12.85728259,130.2,130.17,16.10206626]
[1765900638311,8.33761135,130.25,130.19,13.51728259]
[1765900638827,0.66,130.24,130.19,9.01728259]
[1765900639035,0.66,130.23,130.19,7.68071981]
[1765900639236,0.66,130.22,130.19,7.68071981]
[1765900639406,0.66,130.22,130.18,7.6814154]
[1765900639600,0.66,130.22,130.18,26.88559422]
[1765900639803,0.66,130.22,130.18,48.16287681]
[1765900640012,8.33835623,130.24,130.18,48.16287681]
[1765900640214,8.33835623,130.24,130.19,12.85728259]
[1765900640395,7.67754887,130.25,130.18,35.30559422]
[1765900640595,19.19154739,130.27,130.21,12.85728259]
[1765900640596,8.33669376,130.27,130.21,12.85728259]
[1765900640821,0.66,130.26,130.21,8.42]
[1765900641030,0.66,130.24,130.21,8.42]
[1765900641227,0.66,130.23,130.2,7.68011844]
[1765900641418,0.66,130.22,130.19,7.68103141]
[1765900641608,0.66,130.22,130.2,7.68045023]
[1765900641811,20.53554914,130.24,130.2,7.68045023]
[1765900642014,0.66,130.23,130.2,7.68045023]
[1765900642213,0.66,130.23,130.21,7.67987033]
[1765900642505,0.66,130.23,130.2,7.68031302]
[1765900643014,0.66,130.24,130.21,7.6797712]
[1765900643208,0.66,130.24,130.2,20.53777414]
[1765900643548,21.19385836,130.27,130.21,13.51728259]
[1765900643748,21.19385836,130.27,130.22,30.08722751]
[1765900643749,0.66,130.27,130.22,30.08722751]
[1765900643899,0.66,130.27,130.23,0.66]
[1765900644106,20.53285452,130.29,130.23,12.85728259]
[1765900644107,0.66,130.28,130.23,12.85728259]
[1765900644421,0.66,130.29,130.24,21.27728259]
[1765900644601,0.66,130.29,130.24,21.93728259]
[1765900644803,0.66,130.28,130.24,21.27728259]
[1765900645006,0.66,130.28,130.21,8.80994492]
[1765900645007,0.66,130.27,130.22,0.66]
[1765900645306,12.85728259,130.27,130.23,16.09872226]
[1765900645501,0.66,130.26,130.23,16.09872226]
[1765900646107,0.66,130.24,130.2,19.20086161]
[1765900646350,13.51728259,130.24,130.21,5.52173585]
[1765900646556,0.66,130.22,130.19,7.68105296]
[1765900646839,0.66,130.23,130.2,13.20666484]
[1765900647052,13.51728259,130.23,130.2,7.68037328]
[1765900647211,13.51728259,130.23,130.19,8.42]
[1765900647405,12.85728259,130.23,130.19,8.42]
[1765900647625,0.66,130.22,130.19,8.42]
[1765900647837,13.51728259,130.22,130.19,8.42]
[1765900648025,0.66,130.23,130.2,5.53409314]
[1765900648233,0.66,130.22,130.19,8.42]
[1765900648454,26.87372458,130.24,130.2,5.53902039]
[1765900648739,26.87372458,130.24,130.19,8.42]
[1765900648740,0.66,130.23,130.19,8.42]
[1765900648916,0.66,130.29,130.22,12.85728259]
[1765900649137,0.66,130.29,130.25,20.53426534]
[1765900649319,8.33527437,130.29,130.25,20.53426534]
[1765900649511,0.66,130.28,130.25,20.53426534]
[1765900649735,0.66,130.28,130.25,7.67698275]
[1765900649937,0.66,130.29,130.25,7.67698275]
[1765900650105,0.66,130.25,130.19,13.0470912]
[1765900650304,35.26128133,130.3,130.19,13.0470912]
[1765900650305,0.66,130.23,130.2,21.63622493]
[1765900650508,0.66,130.23,130.2,16.10031143]
[1765900650734,12.85728259,130.24,130.21,7.67984978]
[1765900650916,12.85728259,130.24,130.19,32.05944271]
[1765900650917,0.66,130.23,130.2,16.10046489]
[1765900651105,0.66,130.23,130.21,7.67977829]
[1765900651308,0.66,130.24,130.21,7.67977829]
[1765900651741,0.66,130.28,130.21,20.53706088]
[1765900651942,12.85728259,130.27,130.21,20.53706088]
[1765900652115,12.85728259,130.28,130.23,12.85728259]
[1765900652319,0.66,130.27,130.23,21.27728259]
[1765900652910,0.66,130.26,130.23,8.42]
[1765900653115,0.66,130.28,130.24,20.53489567]
[1765900653310,0.66,130.27,130.24,7.67761308]
[1765900653530,0.66,130.27,130.23,7.67836922]
[1765900653722,13.54728259,130.26,130.23,8.42]
[1765900653923,13.54728259,130.26,130.23,16.09866677]
[1765900654216,0.69,130.27,130.24,7.67792328]
[1765900654515,0.69,130.28,130.24,16.09802731]
[1765900654732,12.85728259,130.27,130.24,8.42]
[1765900654935,0.10398016,130.32,130.26,0.7]
[1765900655141,0.69,130.31,130.26,7.67695378]
[1765900655341,0.69,130.3,130.26,7.67695378]
[1765900655650,0.69,130.28,130.25,7.67735816]
[1765900655945,0.69,130.28,130.25,8.42]
[1765900656124,0.69,130.28,130.25,16.09751293]
[1765900656321,0.69,130.28,130.25,7.67751293]
[1765900656517,0.69,130.28,130.25,16.09751293]
[1765900656751,0.69,130.28,130.24,28.95521064]
[1765900657047,0.69,130.28,130.24,16.09792805]
[1765900657251,20.5334482,130.28,130.24,16.09792805]
[1765900657415,0.69,130.25,130.21,19.19886238]
[1765900657756,0.69,130.25,130.19,9.50994492]
[1765900657757,0.69,130.24,130.19,19.90197358]
[1765900657970,0.69,130.23,130.18,12.85728259]
[1765900658120,0.69,130.2,130.14,0.7]
[1765900658316,12.85728259,130.15,130.09,12.85728259]
[1765900658526,0.69,130.22,130.14,13.55728259]
[1765900658755,13.54728259,130.21,130.15,12.85728259]
[1765900658958,13.54728259,130.21,130.14,9.12]
[1765900659120,13.54728259,130.19,130.14,9.12]
[1765900659450,13.54728259,130.18,130.14,16.10382789]
[1765900659639,0.69,130.21,130.15,12.85728259]
[1765900659822,13.54728259,130.21,130.14,16.80382789]
[1765900660025,0.69,130.22,130.14,7.68382789]
[1765900660224,13.54728259,130.16,130.13,8.42]
[1765900660552,0.69,130.24,130.14,7.68373453]
[1765900660762,13.54728259,130.25,130.16,0.7]
[1765900661048,0.69,130.25,130.17,9.12]
[1765900661215,0.69,130.23,130.17,9.12]
[1765900661418,0.69,130.22,130.18,7.68167153]
[1765900661621,0.69,130.22,130.18,20.53895412]
[1765900661840,12.85728259,130.21,130.16,7.68262991]
[1765900662041,0.69,130.19,130.15,7.68322075]
[1765900662220,0.69,130.19,130.15,16.10322075]
[1765900662423,0.69,130.18,130.15,16.10322075]
[1765900662643,0.69,130.17,130.14,16.10387088]
[1765900662837,12.85728259,130.17,130.14,16.10387088]
[1765900663027,0.69,130.17,130.11,19.91391625]
[1765900663366,7.68049155,130.2,130.15,7.68344218]
[1765900663533,0.69,130.19,130.15,7.68344218]
[1765900663739,13.53784772,130.19,130.15,7.68344218]
[1765900663921,0.69,130.18,130.14,16.10390221]
[1765900664121,8.4,130.22,130.15,0.7]
[1765900664422,8.4,130.22,130.17,13.54784772]
[1765900664423,13.53784772,130.22,130.17,13.54784772]
[1765900664624,13.53784772,130.21,130.14,36.01398366]
[1765900664848,13.53784772,130.2,130.15,12.84784772]
[1765900665037,13.53784772,130.2,130.15,13.54784772]
[1765900665357,20.52915675,130.19,130.14,35.31398366]
[1765900665661,12.84784772,130.17,130.13,7.68448156]
[1765900665949,0.69,130.15,130.12,7.68513027]
[1765900666137,0.69,130.15,130.13,7.68461538]
[1765900666336,0.69,130.15,130.13,7.68454511]
[1765900666539,0.69,130.16,130.13,7.68454511]
[1765900666738,13.53784772,130.16,130.11,8.42]
[1765900666937,0.69,130.16,130.11,21.96784772]
[1765900667118,0.69,130.16,130.13,7.68424359]
[1765900667521,12.84784772,130.17,130.12,20.53291742]
[1765900667738,13.53784772,130.16,130.12,7.6850697]
[1765900668138,12.84784772,130.14,130.1,7.68622589]
[1765900668350,0.69,130.13,130.1,7.68622589]
[1765900668544,35.30634993,130.18,130.09,16.10679273]
[1765900668744,0.69,130.17,130.09,8.42]
[1765900668942,0.69,130.11,130.09,8.42]
[1765900669543,0.69,130.12,130.09,16.10676151]
[1765900669731,0.69,130.14,130.1,7.91269777]
[1765900669940,0.69,130.14,130.09,8.42]
[1765900670127,7.91269777,130.12,130.09,8.42]
[1765900670428,0.69,130.1,130.06,16.10866915]
[1765900670630,0.69,130.13,130.05,16.30890895]
[1765900670833,0.69,130.1,130.06,7.91269777]
[1765900671057,0.69,130.09,130.05,24.22160672]
[1765900671222,0.69,130.09,130.05,16.30890895]
[1765900671423,0.69,130.07,130.05,8.62]
[1765900671636,0.69,130.06,130.05,0.2]
[1765900671832,19.21484874,130.11,130.05,7.88884297]
[1765900672051,0.69,130.12,130.07,7.91269777]
[1765900672354,0.69,130.13,130.09,7.91269777]
[1765900672528,0.69,130.13,130.06,8.42]
[1765900673126,8.60269777,130.12,130.06,8.42]
[1765900673329,0.69,130.13,130.06,16.33269777]
[1765900673546,0.69,130.09,130.06,7.68825779]
[1765900673759,8.60269777,130.09,130.06,7.68825779]
[1765900673967,8.60269777,130.09,130.05,16.30917473]
[1765900674181,0.69,130.08,130.05,16.30917473]
[1765900674340,7.91269777,130.08,130.05,16.30917473]
[1765900674525,0.69,130.07,130.05,8.62]
[1765900674847,0.69,130.08,130.05,7.88892341]
[1765900675047,0.69,130.08,130.05,0.2]
[1765900675555,8.60269777,130.08,130.05,7.88920058]
[1765900675732,0.69,130.08,130.05,7.88920058]
[1765900675930,0.69,130.08,130.05,15.80189835]
[1765900676168,0.69,130.1,130.06,7.91269777]
[1765900676343,0.69,130.09,130.05,7.88920058]
[1765900676655,0.69,130.09,130.06,7.91269777]
[1765900676850,0.69,130.1,130.05,35.5325762]
[1765900677253,0.69,130.11,130.05,36.2325762]
[1765900677432,0.69,130.11,130.07,15.60040215]
[1765900678047,0.69,130.1,130.06,7.688587]
[1765900678246,7.68582044,130.11,130.07,7.68807544]
[1765900678560,0.69,130.1,130.07,15.60077321]
[1765900678743,0.69,130.1,130.07,7.68807544]
[1765900678939,0.69,130.09,130.06,7.91269777]
[1765900679163,0.69,130.09,130.05,8.62]
[1765900679363,0.69,130.07,130.05,8.62]
[1765900679560,0.69,130.07,130.05,0.2]
[1765900680166,8.37706427,130.09,130.05,8.11269777]
[1765900680368,0.69,130.08,130.06,7.91269777]
[1765900680657,0.69,130.08,130.05,7.88923929]
[1765900680859,7.68704308,130.09,130.05,0.2]
[1765900681070,0.69,130.18,130.08,7.91269777]
[1765900681248,0.69,130.15,130.11,7.91269777]